fUST/lending_fUST_20250506
["ID","MTS","AMOUNT","RATE_DAILY","PERIOD"]
[360000874,1746473446564,-1851.9,0.00032876,8]
[360000875,1746473446734,-7285.9,0.00032876,8]
[360000876,1746473446745,-400.0,0.00032876,8]
[360000877,1746473446754,-1322.67,0.00032876,8]
[360000878,1746473446764,-400.0,0.00032876,8]
[360000879,1746473446774,-400.0,0.00032876,8]
[360000880,1746473446784,-400.0,0.00032876,8]
[360000881,1746473446793,-400.0,0.00032876,8]
[360000882,1746473446803,-400.0,0.00032876,8]
[360000883,1746473446812,-400.0,0.00032876,8]
[360000884,1746473446822,-2107.54,0.00032876,8]
[360000885,1746473446831,-2678.5,0.00032876,8]
[360000886,1746473446841,-2678.5,0.00032876,8]
[360000887,1746473446850,-2678.5,0.00032876,8]
[360000888,1746473446859,-2678.5,0.00032876,8]
[360000889,1746473446869,-2678.5,0.00032876,8]
[360000890,1746473446878,-2678.5,0.00032876,8]
[360000891,1746473446887,-2678.5,0.00032876,8]
[360000892,1746473446897,-2678.5,0.00032876,8]
[360000893,1746473446906,-2678.5,0.00032876,8]
[360000894,1746473446915,-2678.5,0.00032876,8]
[360000895,1746473446925,-2678.5,0.00032876,8]
[360000896,1746473446934,-400.0,0.00032876,8]
[360000897,1746473446943,-2678.5,0.00032876,8]
[360000898,1746473446953,-2678.5,0.00032876,8]
[360000899,1746473446962,-2678.5,0.00032876,8]
[360000900,1746473446971,-2678.5,0.00032876,8]
[360000901,1746473446981,-2678.5,0.00032876,8]
[360000902,1746473446990,-2678.5,0.00032876,8]
[360000903,1746473446999,-2678.5,0.00032876,8]
[360000904,1746473447008,-400.0,0.00032876,8]
[360000905,1746473447017,-2678.5,0.00032876,8]
[360000906,1746473447026,-2678.5,0.00032876,8]
[360000907,1746473447036,-2678.5,0.00032876,8]
[360000908,1746473447045,-1047.89069111,0.00032876,8]
[360000921,1746474139495,-754.42512,0.00023913,2]
[360000922,1746474139518,-982.3417755,0.00023936,2]
[360000923,1746474139540,-1521.22508236,0.00024714,2]
[360000924,1746474139560,-300.0,0.00024803,2]
[360000925,1746474139580,-300.0,0.00024803,2]
[360000926,1746474139600,-1095.35,0.00024804,3]
[360000927,1746474139621,-547.67,0.00024804,3]
[360000928,1746474139642,-273.84,0.00024804,3]
[360000929,1746474139662,-821.52,0.00024804,3]
[360000930,1746474139683,-1200.0,0.00024812,2]
[360000931,1746474139704,-300.0,0.00024812,2]
[360000932,1746474139725,-500.0,0.00024812,2]
[360000933,1746474139756,-500.0,0.00024812,2]
[360000934,1746474139780,-500.0,0.00024812,2]
[360000935,1746474139808,-500.0,0.00024812,2]
[360000936,1746474139830,-500.0,0.00024812,2]
[360000937,1746474139853,-265.54290901,0.00024812,2]
[360000938,1746474139881,-500.0,0.00024812,2]
[360000939,1746474139904,-500.0,0.00024812,2]
[360000940,1746474139939,-500.0,0.00024812,2]
[360000941,1746474139972,-500.0,0.00024812,2]
[360000942,1746474139995,-500.0,0.00024812,2]
[360000943,1746474140027,-500.0,0.00024812,2]
[360000944,1746474140058,-500.0,0.00024812,2]
[360000945,1746474140087,-500.0,0.00024812,2]
[360000946,1746474140114,-500.0,0.00024812,2]
[360000947,1746474140140,-500.0,0.00024812,2]
[360000948,1746474140170,-500.0,0.00024812,2]
[360000949,1746474140196,-500.0,0.00024812,2]
[360000950,1746474140224,-500.0,0.00024812,2]
[360000951,1746474140252,-500.0,0.00024812,2]
[360000952,1746474140277,-500.0,0.00024812,2]
[360000953,1746474140304,-500.0,0.00024812,2]
[360000954,1746474140329,-500.0,0.00024812,2]
[360000955,1746474140355,-500.0,0.00024812,2]
[360000956,1746474140382,-500.0,0.00024812,2]
[360000957,1746474140408,-500.0,0.00024812,2]
[360000958,1746474140435,-500.0,0.00024812,2]
[360000959,1746474140460,-500.0,0.00024812,2]
[360000960,1746474140486,-500.0,0.00024812,2]
[360000961,1746474140511,-500.0,0.00024812,2]
[360000962,1746474140537,-500.0,0.00024812,2]
[360000963,1746474140562,-500.0,0.00024812,2]
[360000964,1746474140588,-500.0,0.00024812,2]
[360000965,1746474140614,-500.0,0.00024812,2]
[360000966,1746474140639,-500.0,0.00024812,2]
[360000967,1746474140665,-500.0,0.00024812,2]
[360000968,1746474140690,-500.0,0.00024812,2]
[360000969,1746474140899,-500.0,0.00024812,2]
[360000970,1746474140930,-500.0,0.00024812,2]
[360000971,1746474140958,-500.0,0.00024812,2]
[360000972,1746474140987,-500.0,0.00024812,2]
[360000973,1746474141014,-500.0,0.00024812,2]
[360000974,1746474141043,-500.0,0.00024812,2]
[360000975,1746474141070,-500.0,0.00024812,2]
[360000976,1746474141096,-138.08511313,0.00024812,2]
[360000977,1746474180215,-361.91488687,0.00024812,2]
[360000978,1746474180246,-500.0,0.00024812,2]
[360000979,1746474180275,-500.0,0.00024812,2]
[360000980,1746474180300,-500.0,0.00024812,2]
[360000981,1746474180328,-500.0,0.00024812,2]
[360000982,1746474180355,-451.42913951,0.00024812,2]
[360000983,1746474180376,-7186.65597362,0.00024812,2]
[360000987,1746474425124,-1988.63558532,0.00023272,2]
[360000988,1746474449092,-851.89228744,0.00023272,2]
[360000990,1746474557143,-2005.74354493,0.00023272,2]
[360000991,1746474558132,-1281.26915268,0.00023272,2]
[360001049,1746474632595,-284.0382246,0.00022712,2]
[360001051,1746474632605,-252.90862777,0.00023072,2]
[360001054,1746474632614,-170.74052214,0.00023072,2]
[360001056,1746474632623,-502.90072755,0.00023247,2]
[360001057,1746474632632,-160.0,0.0002327,2]
[360001058,1746474632641,-1200.0,0.00023271,2]
[360001059,1746474632650,-300.0,0.00023271,2]
[360001060,1746474632660,-3872.45942963,0.00023272,2]
[360001061,1746474632670,-170.74052213,0.00023442,2]
[360001063,1746474632679,-159.13584981,0.0002361,2]
[360001065,1746474632689,-300.0,0.00023809,2]
[360001067,1746474632698,-300.0,0.00023809,2]
[360001069,1746474632708,-300.0,0.00023809,2]
[360001070,1746474632717,-300.0,0.00023809,2]
[360001071,1746474632727,-229.130963,0.0002381,2]
[360001073,1746474632736,-741.41759601,0.0002381,2]
[360001075,1746474632746,-170.74052213,0.00023812,2]
[360001079,1746474632913,-383.87684623,0.00023812,2]
[360001080,1746474632928,-428.0601985,0.00023812,2]
[360001081,1746474632940,-800.55242705,0.00023812,2]
[360001084,1746474632951,-1698.77440577,0.00023812,2]
[360001086,1746474632961,-151.0,0.00023899,2]
[360001088,1746474632971,-1297.54176777,0.00023911,2]
[360001094,1746474633023,-486.26501057,0.00023911,2]
[360001095,1746474633035,-1783.80677834,0.00023911,2]
[360001097,1746474633045,-1783.80677834,0.00023911,2]
[360001099,1746474633055,-1783.80677834,0.00023911,2]
[360001101,1746474633064,-1783.80677834,0.00023911,2]
[360001103,1746474633075,-1783.80677834,0.00023911,2]
[360001104,1746474633084,-1783.80677834,0.00023911,2]
[360001105,1746474633094,-1783.80677834,0.00023911,2]
[360001106,1746474633104,-1783.80677834,0.00023911,2]
[360001107,1746474633114,-1783.80677834,0.00023911,2]
[360001109,1746474633123,-1783.80677834,0.00023911,2]
[360001110,1746474633133,-1783.80677834,0.00023911,2]
[360001111,1746474633143,-1783.80677834,0.00023911,2]
[360001112,1746474633153,-1783.80677834,0.00023911,2]
[360001113,1746474633163,-500.0,0.00023911,2]
[360001114,1746474633173,-1783.80677834,0.00023911,2]
[360001115,1746474633183,-1783.80677834,0.00023911,2]
[360001116,1746474633193,-1783.80677834,0.00023911,2]
[360001117,1746474633202,-1783.80677834,0.00023911,2]
[360001118,1746474633212,-1783.80677834,0.00023911,2]
[360001119,1746474633221,-1783.80677834,0.00023911,2]
[360001120,1746474633230,-1783.80677834,0.00023911,2]
[360001121,1746474633240,-1783.80677834,0.00023911,2]
[360001122,1746474633249,-1783.80677834,0.00023911,2]
[360001123,1746474633258,-1783.80677834,0.00023911,2]
[360001124,1746474633268,-1783.80677834,0.00023911,2]
[360001125,1746474633279,-200.98529742,0.00023911,2]
[360001126,1746474633302,-1582.82148092,0.00023911,2]
[360001127,1746474633311,-1783.80677834,0.00023911,2]
[360001128,1746474633321,-1783.80677834,0.00023911,2]
[360001129,1746474633332,-1783.80677834,0.00023911,2]
[360001130,1746474633342,-1783.80677834,0.00023911,2]
[360001131,1746474633352,-1783.80677834,0.00023911,2]
[360001132,1746474633362,-1783.80677834,0.00023911,2]
[360001133,1746474633371,-953.68088735,0.00023911,2]
[360001178,1746474638417,-830.12589099,0.00023911,2]
[360001180,1746474638428,-1783.80677834,0.00023911,2]
[360001182,1746474638438,-1783.80677834,0.00023911,2]
[360001184,1746474638447,-1783.80677834,0.00023911,2]
[360001186,1746474638457,-176.42071027,0.00023911,2]
[360001189,1746474638474,-1607.38606807,0.00023911,2]
[360001191,1746474638484,-1783.80677834,0.00023911,2]
[360001193,1746474638493,-1783.80677834,0.00023911,2]
[360001195,1746474638503,-1783.80677834,0.00023911,2]
[360001197,1746474638512,-1783.80677834,0.00023911,2]
[360001199,1746474638522,-1783.80677834,0.00023911,2]
[360001201,1746474638531,-500.0,0.00023911,2]
[360001203,1746474638540,-1783.80677834,0.00023911,2]
[360001205,1746474638550,-1783.80677834,0.00023911,2]
[360001207,1746474638559,-1783.80677834,0.00023911,2]
[360001209,1746474638569,-1783.80677834,0.00023911,2]
[360001211,1746474638580,-209.9416394,0.00023911,2]
[360001213,1746474638592,-915.73898797,0.00023911,2]
[360001234,1746474638772,-94.6546986,0.00023911,2]
[360001236,1746474638788,-563.47145237,0.00023911,2]
[360001238,1746474638798,-500.0,0.00023911,2]
[360001240,1746474638807,-1844.17760287,0.00023911,2]
[360001242,1746474638817,-500.0,0.00023911,2]
[360001244,1746474638826,-500.0,0.00023911,2]
[360001247,1746474638835,-500.0,0.00023911,2]
[360001249,1746474638845,-1844.17760287,0.00023911,2]
[360001251,1746474638854,-500.0,0.00023911,2]
[360001253,1746474638864,-578.47952164,0.00023911,2]
[360001255,1746474638873,-451.5541695,0.00023911,2]
[360001257,1746474638882,-1844.17760287,0.00023911,2]
[360001259,1746474638892,-500.0,0.00023911,2]
[360001261,1746474638901,-500.0,0.00023911,2]
[360001263,1746474638911,-500.0,0.00023911,2]
[360001265,1746474638920,-1844.17760287,0.00023911,2]
[360001267,1746474638930,-500.0,0.00023911,2]
[360001269,1746474638940,-500.0,0.00023911,2]
[360001271,1746474638949,-63.53678392,0.00023911,2]
[360001273,1746474638962,-814.33509922,0.00023911,2]
[360001275,1746474638974,-653.96976556,0.00023911,2]
[360001279,1746474638998,-312.33595417,0.00023911,2]
[360001281,1746474639008,-500.0,0.00023911,2]
[360001283,1746474639019,-1844.17760287,0.00023911,2]
[360001285,1746474639029,-500.0,0.00023911,2]
[360001287,1746474639038,-500.0,0.00023911,2]
[360001290,1746474639048,-500.0,0.00023911,2]
[360001292,1746474639058,-1844.17760287,0.00023911,2]
[360001294,1746474639068,-500.0,0.00023911,2]
[360001296,1746474639077,-1844.17760287,0.00023911,2]
[360001298,1746474639087,-500.0,0.00023911,2]
[360001300,1746474639096,-500.0,0.00023911,2]
[360001302,1746474639107,-1844.17760287,0.00023911,2]
[360001304,1746474639116,-1844.17760287,0.00023911,2]
[360001306,1746474639126,-500.0,0.00023911,2]
[360001308,1746474639136,-1844.17760287,0.00023911,2]
[360001310,1746474639146,-500.0,0.00023911,2]
[360001312,1746474639155,-1844.17760287,0.00023911,2]
[360001314,1746474639165,-1844.17760287,0.00023911,2]
[360001316,1746474639174,-1844.17760287,0.00023911,2]
[360001318,1746474639184,-500.0,0.00023911,2]
[360001320,1746474639194,-1844.17760287,0.00023911,2]
[360001322,1746474639204,-1844.17760287,0.00023911,2]
[360001325,1746474639214,-1844.17760287,0.00023911,2]
[360001327,1746474639223,-1844.17760287,0.00023911,2]
[360001329,1746474639233,-1844.17760287,0.00023911,2]
[360001331,1746474639242,-1844.17760287,0.00023911,2]
[360001333,1746474639251,-1844.17760287,0.00023911,2]
[360001335,1746474639261,-1844.17760287,0.00023911,2]
[360001337,1746474639270,-1844.17760287,0.00023911,2]
[360001339,1746474639280,-1844.17760287,0.00023911,2]
[360001341,1746474639289,-1844.17760287,0.00023911,2]
[360001343,1746474639302,-1844.17760287,0.00023911,2]
[360001345,1746474639312,-1844.17760287,0.00023911,2]
[360001347,1746474639321,-1844.17760287,0.00023911,2]
[360001349,1746474639330,-1844.17760287,0.00023911,2]
[360001351,1746474639339,-1844.17760287,0.00023911,2]
[360001353,1746474639348,-1844.17760287,0.00023911,2]
[360001355,1746474639359,-1844.17760287,0.00023911,2]
[360001357,1746474639368,-1844.17760287,0.00023911,2]
[360001359,1746474639377,-1844.17760287,0.00023911,2]
[360001361,1746474639387,-1844.17760287,0.00023911,2]
[360001363,1746474639397,-1844.17760287,0.00023911,2]
[360001365,1746474639406,-1844.17760287,0.00023911,2]
[360001367,1746474639415,-1844.17760287,0.00023911,2]
[360001370,1746474639426,-1844.17760287,0.00023911,2]
[360001372,1746474639435,-1844.17760287,0.00023911,2]
[360001374,1746474639444,-1844.17760287,0.00023911,2]
[360001376,1746474639454,-1844.17760287,0.00023911,2]
[360001378,1746474639463,-1844.17760287,0.00023911,2]
[360001380,1746474639473,-1844.17760287,0.00023911,2]
[360001382,1746474639482,-500.0,0.00023911,2]
[360001384,1746474639491,-500.0,0.00023911,2]
[360001386,1746474639500,-499.99999999,0.00023911,2]
[360001389,1746474639517,-1600.04496843,0.00023911,2]
[360001391,1746474639531,-18743.28967624,0.00023912,2]
[360001393,1746474639540,-500.0,0.00023912,2]
[360001395,1746474639550,-194.69790933,0.00023912,2]
[360001397,1746474639560,-500.0,0.00023912,2]
[360001399,1746474639570,-500.0,0.00023912,2]
[360001401,1746474639581,-500.0,0.00023912,2]
[360001403,1746474639590,-426.23185037,0.00023912,2]
[360001405,1746474639600,-500.0,0.00023912,2]
[360001408,1746474639610,-500.0,0.00023912,2]
[360001410,1746474639620,-500.0,0.00023912,2]
[360001412,1746474639630,-441.08943706,0.00023912,2]
[360001414,1746474639639,-500.0,0.00023912,2]
[360001416,1746474639649,-500.0,0.00023912,2]
[360001418,1746474639659,-500.0,0.00023912,2]
[360001420,1746474639668,-500.0,0.00023912,2]
[360001422,1746474639677,-500.0,0.00023912,2]
[360001424,1746474639686,-500.0,0.00023912,2]
[360001426,1746474639695,-346.45,0.00023912,2]
[360001428,1746474639705,-500.0,0.00023912,2]
[360001430,1746474639715,-500.0,0.00023912,2]
[360001432,1746474639725,-500.0,0.00023912,2]
[360001434,1746474639735,-500.0,0.00023912,2]
[360001436,1746474639744,-536.16881031,0.00023912,2]
[360001438,1746474639754,-207.3951496,0.00023913,2]
[360001440,1746474639764,-24900.0,0.00023913,2]
[360001442,1746474639774,-152.0,0.00023931,2]
[360001444,1746474639783,-252.90862775,0.00023936,2]
[360001446,1746474639793,-500.0,0.00024186,2]
[360001448,1746474639803,-500.0,0.0002446,2]
[360001450,1746474639813,-430.33020921,0.0002456,2]
[360001452,1746474639824,-500.0,0.0002456,2]
[360001454,1746474639834,-500.0,0.0002456,2]
[360001456,1746474639843,-500.0,0.00024734,2]
[360001458,1746474639853,-500.0,0.0002474,2]
[360001460,1746474639863,-377.75611487,0.0002474,2]
[360001462,1746474639872,-501.45792757,0.0002474,2]
[360001464,1746474639883,-500.0,0.0002474,2]
[360001466,1746474639894,-500.0,0.0002474,2]
[360001468,1746474639903,-500.0,0.0002474,2]
[360001470,1746474639913,-500.0,0.0002474,2]
[360001472,1746474639922,-500.64140692,0.0002474,2]
[360001474,1746474639932,-500.61217257,0.0002474,2]
[360001477,1746474639941,-500.0,0.0002474,2]
[360001479,1746474639951,-500.0,0.0002474,2]
[360001481,1746474639961,-500.0,0.0002474,2]
[360001483,1746474639970,-500.0,0.0002474,2]
[360001485,1746474639979,-500.0,0.0002474,2]
[360001487,1746474639989,-614.21578812,0.0002474,2]
[360001489,1746474639998,-169.8954447,0.0002474,2]
[360001491,1746474640008,-252.90862775,0.000248,2]
[360001493,1746474640018,-129969.9596708,0.00024814,2]
[360001495,1746474640028,-32477.3464161,0.000249,2]
[360001497,1746474640038,-500.0,0.00024933,2]
[360001499,1746474640048,-500.0,0.00024933,2]
[360001501,1746474640057,-500.0,0.00024933,2]
[360001503,1746474640068,-426.82261688,0.00024933,2]
[360001505,1746474640077,-500.0,0.00024933,2]
[360001507,1746474640087,-500.0,0.00024933,2]
[360001511,1746474640097,-500.0,0.0002494,2]
[360001514,1746474640107,-500.0,0.0002494,2]
[360001517,1746474640118,-610.71163452,0.0002494,2]
[360001522,1746474640131,-500.0,0.0002494,2]
[360001524,1746474640140,-500.0,0.0002494,2]
[360001526,1746474640150,-500.0,0.0002494,2]
[360001528,1746474640160,-501.90544638,0.0002496,2]
[360001529,1746474640170,-500.0,0.0002496,2]
[360001530,1746474640179,-348.18323385,0.0002496,2]
[360001531,1746474640189,-500.0,0.00025,30]
[360001532,1746474640198,-501.01931876,0.00025,30]
[360001533,1746474640208,-609.44014424,0.00025,30]
[360001534,1746474640218,-500.0,0.00025,2]
[360001535,1746474640228,-500.0,0.00025,30]
[360001536,1746474640237,-500.0,0.00025,30]
[360001537,1746474640247,-500.0,0.00025,30]
[360001538,1746474640256,-720.81526886,0.00025,30]
[360001539,1746474640266,-759.75088258,0.00025,30]
[360001540,1746474640276,-509.96264343,0.00025,2]
[360001541,1746474640287,-630.5896933,0.00025,2]
[360001542,1746474640301,-1533.0,0.00025371,2]
[360001543,1746474640310,-748.40064828,0.000254,13]
[360001545,1746474640320,-748.40064819,0.00025417,13]
[360001547,1746474640331,-420.0,0.00025825,2]
[360001549,1746474640340,-1612.48947172,0.00025896,2]
[360001551,1746474640350,-748.40064819,0.00025934,14]
[360001553,1746474640360,-507.17854274,0.00026,30]
[360001555,1746474640369,-500.0,0.00026,30]
[360001557,1746474640379,-500.0,0.00026,30]
[360001559,1746474640389,-500.0,0.00026,30]
[360001561,1746474640398,-500.0,0.00026,30]
[360001563,1746474640407,-509.83832285,0.00026,30]
[360001565,1746474640417,-500.0,0.00026,30]
[360001567,1746474640427,-998.26316889,0.00026,30]
[360001570,1746474640437,-500.0,0.00026,30]
[360001572,1746474640447,-500.0,0.00026,30]
[360001574,1746474640456,-500.0,0.00026,30]
[360001576,1746474640466,-841.77443764,0.00026,30]
[360001578,1746474640476,-12607.13495863,0.00026,30]
[360001580,1746474640485,-160.0,0.00026,30]
[360001582,1746474640494,-1698.77440576,0.0002603,2]
[360001584,1746474640504,-10825.7821387,0.00026164,2]
[360001586,1746474640514,-2190.7,0.00026174,3]
[360001588,1746474640523,-1095.34,0.00026174,3]
[360001590,1746474640532,-547.68,0.00026174,3]
[360001592,1746474640542,-748.40064819,0.00026452,15]
[360001594,1746474640552,-748.40064819,0.00026969,16]
[360001596,1746474640561,-313.81875325,0.00027,3]
[360001598,1746474640571,-414.291166,0.00027397,2]
[360001600,1746474640580,-16228.58038953,0.00027427,2]
[360001602,1746474640594,-748.40064819,0.00027486,17]
[360001604,1746474640604,-284.0382246,0.00027712,2]
[360001607,1746474640614,-1612.48947172,0.0002798,2]
[360001609,1746474640624,-160.0,0.00027984,2]
[360001611,1746474640633,-160.0,0.00027984,2]
[360001636,1746474640864,-421.83547488,0.00027984,2]
[360001638,1746474640874,-841.77443764,0.00027984,2]
[360001640,1746474640884,-160.0,0.00027984,2]
[360001642,1746474640894,-182.23035355,0.00027984,2]
[360001644,1746474640904,-748.40064819,0.00028003,18]
[360001646,1746474640913,-587.0,0.00028011,2]
[360001648,1746474640923,-160.0,0.00028091,2]
[360001650,1746474640932,-160.0,0.00028091,2]
[360001652,1746474640942,-1649.76775649,0.00028133,2]
[360001654,1746474640952,-1698.77440576,0.00028248,2]
[360001656,1746474640962,-748.40064819,0.00028521,19]
[360001658,1746474640972,-748.40064819,0.00029038,20]
[360001661,1746474640982,-748.40064819,0.00029555,21]
[360001663,1746474640992,-344.27777,0.000298,120]
[360001665,1746474641002,-269.0,0.0003,2]
[360001667,1746474641011,-157.63,0.0003,2]
[360001669,1746474641021,-206.41212574,0.00030039,5]
[360001671,1746474641031,-1612.48947172,0.00030064,2]
[360001673,1746474641041,-748.40064819,0.00030072,22]
[360001675,1746474641050,-1000.0,0.00030219,5]
[360001677,1746474641059,-743.67468235,0.00030219,5]
[360001679,1746474641069,-1000.0,0.00030219,2]
[360001681,1746474641078,-500.0,0.00030219,5]
[360001683,1746474641087,-823.0,0.00030382,2]
[360001685,1746474641097,-10825.7821387,0.00030409,2]
[360001687,1746474641106,-1000.0,0.00030413,5]
[360001689,1746474641115,-1000.0,0.00030413,2]
[360001691,1746474641125,-1000.0,0.00030413,5]
[360001693,1746474641134,-500.0,0.00030419,5]
[360001695,1746474641145,-1000.0,0.00030419,5]
[360001697,1746474641154,-1000.0,0.00030419,5]
[360001699,1746474641163,-1000.0,0.00030419,5]
[360001701,1746474641173,-500.0,0.00030419,5]
[360001703,1746474641182,-1698.77440576,0.00030466,2]
[360001705,1746474641191,-490.466485,0.00030478,2]
[360001707,1746474641200,-748.40064819,0.0003059,23]
[360001709,1746474641209,-207.4,0.00030892,2]
[360001712,1746474641219,-748.40064819,0.00031107,24]
[360001714,1746474641228,-1830.9217912,0.00031232,4]
[360001716,1746474641237,-500.0,0.00031233,2]
[360001718,1746474641247,-291.62001803,0.00031371,2]
[360001720,1746474641256,-748.40064819,0.00031624,25]
[360001722,1746474641265,-180.233,0.00031733,30]
[360001724,1746474641275,-183.310319,0.00031753,3]
[360001726,1746474641285,-32477.3464161,0.0003199,2]
[360001728,1746474641298,-104729.64269376,0.00032,2]
[360001745,1746474641448,-2129.99278796,0.00032,2]
[360001748,1746474641460,-2382.47027819,0.00032,2]
[360001751,1746474641479,-2534.86090232,0.00032,2]
[360001958,1746474643483,-160.11417,0.00023812,2]
[360001960,1746474643492,-427.68583,0.00032,2]
[360001962,1746474643504,-253.74189733,0.00032,2]
[360001967,1746474643536,-15543.56677162,0.00032,2]
[360001969,1746474643545,-748.40064819,0.00032141,26]
[360001971,1746474643554,-1000.0,0.00032329,2]
[360001973,1746474643564,-762.19966637,0.0003236,2]
[360001975,1746474643573,-352.300068,0.00032438,30]
[360001977,1746474643582,-1171.7319498,0.00032438,30]
[360001979,1746474643591,-748.40064819,0.00032659,27]
[360001981,1746474643601,-1698.77440576,0.00032684,2]
[360001983,1746474643610,-10825.7821387,0.00032756,2]
[360001985,1746474643620,-6997.40020548,0.00032766,2]
[360001987,1746474643631,-5119.04301681,0.00032766,2]
[360001989,1746474643642,-454.37925924,0.00032766,2]
[360001992,1746474643663,-8441.78285986,0.00032766,2]
[360001995,1746474643678,-504.68148946,0.00032766,2]
[360002315,1746474646997,-13803.9736841,0.00032766,2]
[360002318,1746474647013,-51284.99659455,0.00032766,2]
[360002320,1746474647023,-500.65908257,0.00032773,5]
[360002322,1746474647032,-500.0,0.00032773,5]
[360002324,1746474647042,-500.71926778,0.00032773,5]
[360002326,1746474647052,-500.0,0.00032773,5]
[360002328,1746474647061,-500.0,0.00032773,5]
[360002330,1746474647069,-500.0,0.00032773,5]
[360002332,1746474647079,-500.0,0.00032773,5]
[360002334,1746474647088,-500.0,0.00032773,5]
[360002336,1746474647097,-500.0,0.00032773,5]
[360002337,1746474647106,-150.0,0.00032773,5]
[360002340,1746474647117,-500.0,0.00032773,5]
[360002342,1746474647127,-500.0,0.00032773,5]
[360002344,1746474647135,-500.0,0.00032773,5]
[360002346,1746474647145,-501.77793966,0.00032773,5]
[360002348,1746474647154,-501.93524173,0.00032773,5]
[360002349,1746474647164,-500.0,0.00032773,5]
[360002351,1746474647173,-500.0,0.00032773,5]
[360002353,1746474647183,-500.0,0.00032773,5]
[360002355,1746474647192,-65009.15187943,0.00032776,2]
[360002854,1746475403918,-181.36687426,0.00022527,2]
[360002855,1746475403940,-978.48455394,0.00022626,2]
[360002856,1746475403964,-328.1485718,0.00022627,2]
[360002859,1746475531754,-186.0,0.00022,2]
[360002860,1746475531777,-1200.0,0.00022625,2]
[360002861,1746475531799,-300.0,0.00022625,2]
[360002862,1746475531824,-48634.0,0.00022626,2]
[360002866,1746475643100,-260.40366542,0.00022625,2]
[360002867,1746475652093,-595.77031926,0.00022625,2]
[360002868,1746475652113,-105.03327209,0.00022626,2]
[360002869,1746475755331,-8922.31942688,0.00022626,2]
[360002870,1746475755352,-3.73065202,0.00022627,2]
[360002871,1746475755372,-300.0,0.00022723,2]
[360002872,1746475755392,-500.0,0.00022724,2]
[360002873,1746475755422,-500.0,0.00022724,2]
[360002874,1746475755451,-500.0,0.00022724,2]
[360002875,1746475755479,-500.0,0.00022724,2]
[360002876,1746475755504,-500.0,0.00022724,2]
[360002877,1746475755530,-500.0,0.00022724,2]
[360002878,1746475755557,-200.0,0.00022724,2]
[360002879,1746475755577,-419.62394309,0.00022724,2]
[360002880,1746475755598,-500.0,0.00022724,2]
[360002881,1746475755619,-500.0,0.00022724,2]
[360002882,1746475755638,-243.24221202,0.00022724,2]
[360002883,1746475755658,-437.78617956,0.00022724,2]
[360002884,1746475755679,-627.43658764,0.00022724,2]
[360002885,1746475755700,-500.0,0.00022724,2]
[360002886,1746475755723,-500.0,0.00022724,2]
[360002887,1746475755751,-500.0,0.00022724,2]
[360002888,1746475755771,-500.0,0.00022724,2]
[360002889,1746475755792,-500.0,0.00022724,2]
[360002890,1746475755814,-500.0,0.00022724,2]
[360002891,1746475755835,-157.01912954,0.00022724,2]
[360002892,1746475755855,-500.0,0.00022724,2]
[360002893,1746475755875,-500.0,0.00022724,2]
[360002894,1746475755896,-500.0,0.00022724,2]
[360002895,1746475755916,-500.0,0.00022724,2]
[360002896,1746475755938,-500.0,0.00022724,2]
[360002897,1746475755959,-500.0,0.00022724,2]
[360002898,1746475755979,-500.0,0.00022724,2]
[360002899,1746475756000,-423.69027564,0.00022724,2]
[360002900,1746475756020,-500.0,0.00022724,2]
[360002901,1746475756041,-500.0,0.00022724,2]
[360002902,1746475756062,-500.0,0.00022724,2]
[360002903,1746475756082,-500.0,0.00022724,2]
[360002904,1746475756110,-500.0,0.00022724,2]
[360002905,1746475756136,-500.0,0.00022724,2]